{"text_format":"1","workbook":"xlsx","n_sheets":8,"sheets":["Základní údaje","HPP","DPP_DPČ","ONIV rozpočet","ONIV komentář","zdroj dat","Zdroje","Informace k vyplnění"],"not_rendered":{"charts":0,"images":0,"macros":1,"external_links":0,"defined_names":4,"comments":0,"pivot_tables":0},"unopened":[],"bounds":{"document_bytes":16777216,"sheet_cells":100000,"rows_first":2000,"rows_last":500,"rows_between":2000,"halvings":0,"cell_chars":16384,"cell_head_chars":4096},"cells_cut":0,"cells_raw":0,"read":"whole","date_system":"1900"}

{"sheet":"Základní údaje","index":0,"n_rows":72,"n_cols":11,"rows_kept":72,"cut":false,"hidden":false,"merged":[[47,0,47,10],[5,0,5,10],[22,0,22,10],[49,0,49,10],[50,0,50,10],[51,0,51,10],[52,0,52,10],[48,0,48,10],[67,5,67,10],[58,0,58,10],[53,0,53,10],[54,0,54,10],[55,0,55,10],[56,0,56,10],[57,0,57,10],[34,3,34,10],[35,0,35,10],[36,0,36,10],[37,0,37,2],[37,3,37,10],[38,0,38,10],[39,0,39,10],[40,0,40,10],[41,0,41,2],[71,0,71,2],[71,5,71,8],[71,3,71,4],[71,9,71,10],[68,0,68,4],[68,5,68,10],[24,0,24,10],[23,0,23,10],[69,0,69,4],[69,5,69,10],[70,0,70,4],[70,5,70,10],[59,0,59,10],[60,0,60,10],[61,0,61,10],[62,0,62,10],[63,0,63,10],[64,0,64,10],[65,0,65,10],[66,0,66,4],[66,5,66,10],[67,0,67,4],[42,0,42,10],[34,0,34,2],[41,3,41,10],[43,0,43,10],[44,0,44,2],[44,3,44,10],[45,0,45,10],[46,0,46,10],[26,0,26,10],[25,0,25,10],[20,0,20,4],[20,5,20,7],[20,8,20,10],[21,0,21,4],[21,5,21,9],[32,0,32,10],[31,0,31,10],[33,0,33,10],[29,0,29,2],[29,3,29,10],[30,0,30,2],[30,3,30,6],[30,8,30,10],[27,0,27,2],[27,3,27,10],[28,0,28,2],[28,3,28,6],[28,8,28,10],[18,5,18,7],[18,8,18,10],[19,0,19,4],[19,5,19,7],[19,8,19,10],[18,1,18,4],[16,5,16,7],[16,8,16,10],[17,5,17,7],[17,8,17,10],[16,1,16,4],[17,1,17,4],[14,0,14,4],[14,5,14,7],[14,8,14,10],[15,5,15,7],[15,8,15,10],[15,1,15,4],[13,0,13,4],[13,5,13,7],[13,8,13,10],[0,6,0,7],[0,8,0,10],[1,0,1,10],[3,6,3,7],[9,0,10,1],[9,2,10,10],[11,0,11,10],[12,0,12,10],[7,0,7,1],[7,2,7,10],[8,0,8,10],[6,0,6,10]]}
[" Č.j.: MSMT-18665/2024-2, "]
["ŽÁDOST O POSKYTNUTÍ NEINVESTIČNÍ DOTACE ZE STÁTNÍHO ROZPOČTU NA ROK 2025"]
[]
[]
[]
[]
["ZÁKLADNÍ ÚDAJE"]
["Registrační název žadatele:"]
[]
["Účel, na který chce žadatel dotaci použít:"]
[]
[]
["Základní údaje o rozpočtových nákladech na projekt "]
[null,null,null,null,null,"Celková výše nákladů",null,null,"Výše požadované dotace"]
["Mzdové prostředky celkem",null,null,null,null,{"$f":"SUM(F16:H19)","v":0},null,null,{"$f":"SUM(I16:K19)","v":0}]
[null,"Platy / mzdy na HPP"]
[null,"Ostatní osobní náklady (odměny z DPP a DPČ)"]
[null,"Zákonné odvody"]
[null,"Fond kulturních a sociálních potřeb"]
["Ostatní neinvestiční náklady "]
["Celkem za projekt",null,null,null,null,{"$f":"SUM(F16:G20)","v":0},null,null,{"$f":"SUM(I16:J20)","v":0}]
["Podíl dotace na financování projektu",null,null,null,null,{"$f":"IFERROR(ROUND((I21/F21*100),2),\"\")","v":""},null,null,null,null,"%"]
[]
["IDENTIFIKAČNÍ ÚDAJE A CHARAKTERISTIKA ŽADATELE O DOTACI"]
[]
["Osoby jednající na základě plné moci či jiného pověření (pozn.: V případě potřeby řádky skryjte nebo doplňte.):"]
["Existuje osoba jednající na základě plné moci či jiného pověření?"]
["Jméno, příjmení, titul, funkce:"]
["Telefon:",null,null,null,null,null,null,"E-mail:"]
["Jméno, příjmení, titul, funkce:"]
["Telefon:",null,null,null,null,null,null,"E-mail:"]
[]
["Obdobné projekty realizované žadatelem o dotaci v roce 2024 a 2023:"]
["Projekt roku 2024"]
["Název projektu roku 2024:"]
["Stručný popis obsahu projektu 2024 (max. 1 500 znaků):"]
[]
["Celková částka nákladů na projekt 2024:"]
["Byl-li projekt 2024 podpořen z veřejných financí, uveďte název poskytovatele finanční podpory, název programu, ze kterého byl podpořen a evidenční číslo projektu:"]
[]
["Projekt roku 2023"]
["Název projektu roku 2023:"]
["Stručný popis obsahu projektu roku 2023 (max. 1 500 znaků):"]
[]
["Celková částka nákladů na projekt roku 2023:"]
["Byl-li projekt roku 2023 podpořen z veřejných financí, uveďte název poskytovatele finanční podpory, název programu, ze kterého byl podpořen a evidenční číslo projektu:"]
[]
[]
["ÚDAJE O PROJEKTU, NA KTERÝ JE POŽADOVÁNA DOTACE V ROCE 2025"]
[]
["Vymezení tematické oblasti / tematických oblastí v jejíž/jejichž rámci bude projekt realizován (max. 1 500 znaků):"]
[]
[]
["Uveďte materiální zabezpečení projektu a prostorové podmínky (max. 1 500 znaků):"]
[]
[]
["Zdůvodnění potřebnosti projektu (max. 1 500 znaků):"]
[]
[]
["Popište klíčová rizika projektu (včetně odůvodnění) a popis způsobů minimalizace či eliminace těchto rizik, uveďte míru či pravděpodobnost jejich výskytu a dopadu na projekt (max. 1 500 znaků) :"]
[]
[]
["Uveďte veškeré další podstatné údaje o projektu, zejména informace o tom, jakým způsobem bude prezentována dotace ministerstva ve výstupech projektu  a informace o vlivu realizace projektu na podporu lidských práv (např. rovných příležitostí ve vzdělávání a podporu inkluzivního vzdělávání, max. 1 500 znaků):"]
[]
[]
["Pokračující projekt"]
[2024,null,null,null,null,2023]
["Byl popisovaný projekt realizován v roce 2024?",null,null,null,null,"Byl popisovaný projekt realizován v roce 2023?"]
[]
["Byl projekt dotován Ministerstvem školství, mládeže a tělovýchovy (MŠMT) v roce 2024?",null,null,null,null,"Byl projekt dotován Ministerstvem školství, mládeže \na tělovýchovy (MŠMT) v roce 2023?"]
[]
["Výše poskytnuté dotace MŠMT:",null,null,null,null,"Výše poskytnuté dotace MŠMT:"]

{"sheet":"HPP","index":1,"n_rows":291,"n_cols":7,"rows_kept":291,"cut":false,"hidden":false,"merged":[[286,1,286,2],[286,3,286,4],[287,1,287,2],[287,3,287,4],[290,1,290,2],[290,3,290,4],[245,1,245,2],[245,3,245,4],[248,1,248,2],[248,3,248,4],[257,1,257,4],[258,1,258,4],[260,1,260,2],[260,3,260,4],[261,1,261,2],[261,3,261,4],[281,1,281,2],[282,1,282,2],[285,1,285,2],[285,3,285,4],[272,1,272,2],[272,3,272,4],[279,1,279,4],[280,1,280,4],[231,1,231,2],[231,3,231,4],[232,1,232,2],[232,3,232,4],[235,1,235,2],[235,3,235,4],[241,1,241,4],[242,1,242,4],[244,1,244,2],[244,3,244,4],[238,1,238,4],[239,1,239,2],[240,1,240,2],[243,1,243,2],[243,3,243,4],[216,1,216,4],[218,1,218,2],[218,3,218,4],[219,1,219,2],[219,3,219,4],[222,1,222,2],[222,3,222,4],[228,1,228,4],[229,1,229,4],[225,1,225,4],[224,1,224,4],[226,1,226,2],[227,1,227,2],[200,1,200,4],[202,1,202,2],[202,3,202,4],[203,1,203,2],[203,3,203,4],[206,1,206,2],[206,3,206,4],[215,1,215,4],[211,1,211,4],[212,1,212,4],[213,1,213,2],[214,1,214,2],[201,1,201,2],[201,3,201,4],[189,1,189,2],[189,3,189,4],[190,1,190,2],[190,3,190,4],[193,1,193,2],[193,3,193,4],[199,1,199,4],[197,1,197,2],[198,1,198,2],[174,1,174,4],[176,1,176,2],[176,3,176,4],[177,1,177,2],[177,3,177,4],[180,1,180,2],[180,3,180,4],[186,1,186,4],[187,1,187,4],[115,1,115,4],[116,1,116,4],[118,1,118,2],[118,3,118,4],[119,1,119,2],[119,3,119,4],[122,1,122,2],[122,3,122,4],[113,1,113,2],[80,1,80,2],[80,3,80,4],[89,1,89,4],[90,1,90,4],[92,1,92,2],[92,3,92,4],[91,1,91,2],[88,1,88,2],[86,1,86,4],[85,1,85,4],[50,3,50,4],[51,1,51,2],[51,3,51,4],[54,1,54,2],[54,3,54,4],[49,1,49,2],[76,3,76,4],[77,1,77,2],[77,3,77,4],[56,1,56,4],[57,1,57,4],[58,1,58,2],[59,1,59,2],[50,1,50,2],[74,1,74,4],[76,1,76,2],[71,1,71,2],[72,1,72,2],[69,1,69,4],[70,1,70,4],[62,1,62,2],[62,3,62,4],[60,1,60,4],[61,1,61,4],[284,1,284,4],[266,1,266,4],[267,1,267,4],[268,1,268,2],[269,1,269,2],[253,1,253,4],[254,1,254,4],[255,1,255,2],[256,1,256,2],[264,1,264,2],[264,3,264,4],[259,1,259,2],[259,3,259,4],[270,1,270,4],[271,1,271,4],[273,1,273,2],[273,3,273,4],[274,1,274,2],[274,3,274,4],[277,1,277,2],[277,3,277,4],[283,1,283,4],[230,1,230,2],[230,3,230,4],[237,1,237,4],[114,1,114,2],[117,1,117,2],[127,1,127,4],[128,1,128,4],[117,3,117,4],[175,3,175,4],[182,1,182,4],[154,1,154,4],[159,3,159,4],[169,1,169,4],[170,1,170,4],[172,1,172,2],[171,1,171,2],[159,1,159,2],[156,1,156,2],[155,1,155,2],[143,1,143,2],[133,1,133,2],[217,1,217,2],[217,3,217,4],[196,1,196,4],[31,1,31,2],[32,1,32,2],[35,1,35,2],[35,3,35,4],[49,3,49,4],[46,1,46,2],[44,1,44,4],[45,1,45,2],[43,1,43,4],[33,1,33,4],[34,1,34,4],[36,1,36,2],[36,3,36,4],[37,1,37,2],[37,3,37,4],[40,1,40,2],[40,3,40,4],[47,1,47,4],[48,1,48,4],[153,1,153,4],[146,1,146,2],[195,1,195,4],[188,1,188,2],[188,3,188,4],[175,1,175,2],[183,1,183,4],[184,1,184,2],[185,1,185,2],[147,1,147,2],[147,3,147,4],[148,1,148,2],[148,3,148,4],[151,1,151,2],[151,3,151,4],[157,1,157,4],[158,1,158,4],[160,1,160,2],[160,3,160,4],[161,1,161,2],[161,3,161,4],[164,1,164,2],[164,3,164,4],[173,1,173,4],[144,1,144,4],[145,1,145,4],[129,1,129,2],[130,1,130,2],[133,3,133,4],[140,1,140,4],[141,1,141,4],[142,1,142,2],[146,3,146,4],[131,1,131,4],[132,1,132,4],[134,1,134,2],[134,3,134,4],[135,1,135,2],[135,3,135,4],[138,1,138,2],[138,3,138,4],[104,1,104,2],[104,3,104,4],[111,1,111,4],[112,1,112,4],[87,1,87,2],[91,3,91,4],[98,1,98,4],[99,1,99,4],[100,1,100,2],[93,1,93,2],[93,3,93,4],[96,1,96,2],[96,3,96,4],[102,1,102,4],[103,1,103,4],[105,1,105,2],[105,3,105,4],[106,1,106,2],[106,3,106,4],[101,1,101,2],[109,1,109,2],[109,3,109,4],[63,1,63,2],[63,3,63,4],[64,1,64,2],[64,3,64,4],[67,1,67,2],[67,3,67,4],[73,1,73,4],[75,1,75,2],[75,3,75,4],[0,0,1,4],[29,1,29,4],[30,1,30,4],[22,1,22,2],[22,3,22,4],[18,1,18,2],[19,1,19,2],[16,1,16,4],[17,1,17,4],[23,1,23,2],[23,3,23,4],[24,1,24,2],[24,3,24,4],[27,1,27,2],[27,3,27,4],[11,1,11,2],[10,1,10,2],[10,3,10,4],[11,3,11,4],[14,1,14,2],[14,3,14,4],[7,1,7,4],[20,1,20,4],[21,1,21,4],[2,6,2,15],[6,1,6,2],[4,1,4,4],[5,1,5,2],[9,1,9,2],[9,3,9,4],[3,1,3,4],[2,0,2,4],[8,1,8,4]]}
[{"$f":"IF('Základní údaje'!C8<>0,'Základní údaje'!C8,\"\")","v":""}]
[]
["ROZPOČET PROJEKTU - Osobní náklady na hlavní pracovní poměr (v Kč)",null,null,null,null,null,"Klikněte na příšlušný počet zaměstnanců na HPP, pro který je nutné vyplnit formulář, pokud nestačí přednastavený počet 1 - 3:\n"]
["Funkce"]
["Popis činnosti",null,null,null,null,1]
["Dosažené vzdělání",null,null,"Platová třída (NV 341/2017 Sb.)",null,null,"Pokud potřebujete více jak 21 HPP, je třeba dokopírovat další tabulky ručně."]
["Doba odborné praxe",null,null,"Platový stupeň (NV 341/2017 Sb.)"]
["Počet měsíců práce na projektu"]
["Výše úvazku"]
[null,"za projekt celkem",null,"z toho z dotace"]
["Průměrný měsíční plat/mzda \nna daný úvazek (bez odvodů a FKSP)"]
["Průměrný měsíční plat/mzda \npřepočtený na 1 úvazek (bez odvodů a FKSP)",{"$f":"IFERROR(B11/B9,0)","v":0},null,{"$f":"IFERROR(D11/B9,0)","v":0}]
["Zákonné odvody",null,{"$f":"IFERROR(B13/B11,0)","v":0},null,{"$f":"IFERROR(D13/D11,0)","v":0}]
["Příděl do FKSP (tvoří-li ho povinně žadatel)",null,{"$f":"IFERROR(B14/B11,0)","v":0},null,{"$f":"IFERROR(D14/D11,0)","v":0}]
["Mzdové náklady HPP celkem",{"$f":"(B11+B13+B14)*B8","v":0},null,{"$f":"(D11+D13+D14)*B8","v":0}]
[]
["Funkce",null,null,null,null,2]
["Popis činnosti"]
["Dosažené vzdělání",null,null,"Platová třída (NV 341/2017 Sb.)"]
["Doba odborné praxe",null,null,"Platový stupeň (NV 341/2017 Sb.)"]
["Počet měsíců práce na projektu"]
["Výše úvazku"]
[null,"za projekt celkem",null,"z toho z dotace"]
["Průměrný měsíční plat/mzda \nna daný úvazek (bez odvodů a FKSP)"]
["Průměrný měsíční plat/mzda \npřepočtený na 1 úvazek (bez odvodů a FKSP)",{"$f":"IFERROR(B24/B22,0)","v":0},null,{"$f":"IFERROR(D24/B22,0)","v":0}]
["Zákonné odvody",null,{"$f":"IFERROR(B26/B24,0)","v":0},null,{"$f":"IFERROR(D26/D24,0)","v":0}]
["Příděl do FKSP (tvoří-li ho povinně žadatel)",null,{"$f":"IFERROR(B27/B24,0)","v":0},null,{"$f":"IFERROR(D27/D24,0)","v":0}]
["Mzdové náklady HPP celkem",{"$f":"(B24+B26+B27)*B21","v":0},null,{"$f":"(D24+D26+D27)*B21","v":0}]
[]
["Funkce",null,null,null,null,3]
["Popis činnosti"]
["Dosažené vzdělání",null,null,"Platová třída (NV 341/2017 Sb.)"]
["Doba odborné praxe",null,null,"Platový stupeň (NV 341/2017 Sb.)"]
["Počet měsíců práce na projektu"]
["Výše úvazku"]
[null,"za projekt celkem",null,"z toho z dotace"]
["Průměrný měsíční plat/mzda \nna daný úvazek (bez odvodů a FKSP)"]
["Průměrný měsíční plat/mzda \npřepočtený na 1 úvazek (bez odvodů a FKSP)",{"$f":"IFERROR(B37/B35,0)","v":0},null,{"$f":"IFERROR(D37/B35,0)","v":0}]
["Zákonné odvody",null,{"$f":"IFERROR(B39/B37,0)","v":0},null,{"$f":"IFERROR(D39/D37,0)","v":0}]
["Příděl do FKSP (tvoří-li ho povinně žadatel)",null,{"$f":"IFERROR(B40/B37,0)","v":0},null,{"$f":"IFERROR(D40/D37,0)","v":0}]
["Mzdové náklady HPP celkem",{"$f":"(B37+B39+B40)*B34","v":0},null,{"$f":"(D37+D39+D40)*B34","v":0}]
[]
[]
["Funkce",null,null,null,null,4]
["Popis činnosti"]
["Dosažené vzdělání",null,null,"Platová třída (NV 341/2017 Sb.)"]
["Doba odborné praxe",null,null,"Platový stupeň (NV 341/2017 Sb.)"]
["Počet měsíců práce na projektu"]
["Výše úvazku"]
[null,"za projekt celkem",null,"z toho z dotace"]
["Průměrný měsíční plat/mzda \nna daný úvazek (bez odvodů a FKSP)"]
["Průměrný měsíční plat/mzda \npřepočtený na 1 úvazek (bez odvodů a FKSP)",{"$f":"IFERROR(B51/B49,0)","v":0},null,{"$f":"IFERROR(D51/B49,0)","v":0}]
["Zákonné odvody",null,{"$f":"IFERROR(B53/B51,0)","v":0},null,{"$f":"IFERROR(D53/D51,0)","v":0}]
["Příděl do FKSP (tvoří-li ho povinně žadatel)",null,{"$f":"IFERROR(B54/B51,0)","v":0},null,{"$f":"IFERROR(D54/D51,0)","v":0}]
["Mzdové náklady HPP celkem",{"$f":"(B51+B53+B54)*B48","v":0},null,{"$f":"(D51+D53+D54)*B48","v":0}]
[]
["Funkce",null,null,null,null,5]
["Popis činnosti"]
["Dosažené vzdělání",null,null,"Platová třída (NV 341/2017 Sb.)"]
["Doba odborné praxe",null,null,"Platový stupeň (NV 341/2017 Sb.)"]
["Počet měsíců práce na projektu"]
["Výše úvazku"]
[null,"za projekt celkem",null,"z toho z dotace"]
["Průměrný měsíční plat/mzda \nna daný úvazek (bez odvodů a FKSP)"]
["Průměrný měsíční plat/mzda \npřepočtený na 1 úvazek (bez odvodů a FKSP)",{"$f":"IFERROR(B64/B62,0)","v":0},null,{"$f":"IFERROR(D64/B62,0)","v":0}]
["Zákonné odvody",null,{"$f":"IFERROR(B66/B64,0)","v":0},null,{"$f":"IFERROR(D66/D64,0)","v":0}]
["Příděl do FKSP (tvoří-li ho povinně žadatel)",null,{"$f":"IFERROR(B67/B64,0)","v":0},null,{"$f":"IFERROR(D67/D64,0)","v":0}]
["Mzdové náklady HPP celkem",{"$f":"(B64+B66+B67)*B61","v":0},null,{"$f":"(D64+D66+D67)*B61","v":0}]
[]
["Funkce",null,null,null,null,6]
["Popis činnosti"]
["Dosažené vzdělání",null,null,"Platová třída (NV 341/2017 Sb.)"]
["Doba odborné praxe",null,null,"Platový stupeň (NV 341/2017 Sb.)"]
["Počet měsíců práce na projektu"]
["Výše úvazku"]
[null,"za projekt celkem",null,"z toho z dotace"]
["Průměrný měsíční plat/mzda \nna daný úvazek (bez odvodů a FKSP)"]
["Průměrný měsíční plat/mzda \npřepočtený na 1 úvazek (bez odvodů a FKSP)",{"$f":"IFERROR(B77/B75,0)","v":0},null,{"$f":"IFERROR(D77/B75,0)","v":0}]
["Zákonné odvody",null,{"$f":"IFERROR(B79/B77,0)","v":0},null,{"$f":"IFERROR(D79/D77,0)","v":0}]
["Příděl do FKSP (tvoří-li ho povinně žadatel)",null,{"$f":"IFERROR(B80/B77,0)","v":0},null,{"$f":"IFERROR(D80/D77,0)","v":0}]
["Mzdové náklady HPP celkem",{"$f":"(B77+B79+B80)*B74","v":0},null,{"$f":"(D77+D79+D80)*B74","v":0}]
[]
[]
[]
[]
["Funkce",null,null,null,null,7]
["Popis činnosti"]
["Dosažené vzdělání",null,null,"Platová třída (NV 341/2017 Sb.)"]
["Doba odborné praxe",null,null,"Platový stupeň (NV 341/2017 Sb.)"]
["Počet měsíců práce na projektu"]
["Výše úvazku"]
[null,"za projekt celkem",null,"z toho z dotace"]
["Průměrný měsíční plat/mzda \nna daný úvazek (bez odvodů a FKSP)"]
["Průměrný měsíční plat/mzda \npřepočtený na 1 úvazek (bez odvodů a FKSP)",{"$f":"IFERROR(B93/B91,0)","v":0},null,{"$f":"IFERROR(D93/B91,0)","v":0}]
["Zákonné odvody",null,{"$f":"IFERROR(B95/B93,0)","v":0},null,{"$f":"IFERROR(D95/D93,0)","v":0}]
["Příděl do FKSP (tvoří-li ho povinně žadatel)",null,{"$f":"IFERROR(B96/B93,0)","v":0},null,{"$f":"IFERROR(D96/D93,0)","v":0}]
["Mzdové náklady HPP celkem",{"$f":"(B93+B95+B96)*B90","v":0},null,{"$f":"(D93+D95+D96)*B90","v":0}]
[]
["Funkce",null,null,null,null,8]
["Popis činnosti"]
["Dosažené vzdělání",null,null,"Platová třída (NV 341/2017 Sb.)"]
["Doba odborné praxe",null,null,"Platový stupeň (NV 341/2017 Sb.)"]
["Počet měsíců práce na projektu"]
["Výše úvazku"]
[null,"za projekt celkem",null,"z toho z dotace"]
["Průměrný měsíční plat/mzda \nna daný úvazek (bez odvodů a FKSP)"]
["Průměrný měsíční plat/mzda \npřepočtený na 1 úvazek (bez odvodů a FKSP)",{"$f":"IFERROR(B106/B104,0)","v":0},null,{"$f":"IFERROR(D106/B104,0)","v":0}]
["Zákonné odvody",null,{"$f":"IFERROR(B108/B106,0)","v":0},null,{"$f":"IFERROR(D108/D106,0)","v":0}]
["Příděl do FKSP (tvoří-li ho povinně žadatel)",null,{"$f":"IFERROR(B109/B106,0)","v":0},null,{"$f":"IFERROR(D109/D106,0)","v":0}]
["Mzdové náklady HPP celkem",{"$f":"(B106+B108+B109)*B103","v":0},null,{"$f":"(D106+D108+D109)*B103","v":0}]
[]
["Funkce",null,null,null,null,9]
["Popis činnosti"]
["Dosažené vzdělání",null,null,"Platová třída (NV 341/2017 Sb.)"]
["Doba odborné praxe",null,null,"Platový stupeň (NV 341/2017 Sb.)"]
["Počet měsíců práce na projektu"]
["Výše úvazku"]
[null,"za projekt celkem",null,"z toho z dotace"]
["Průměrný měsíční plat/mzda \nna daný úvazek (bez odvodů a FKSP)"]
["Průměrný měsíční plat/mzda \npřepočtený na 1 úvazek (bez odvodů a FKSP)",{"$f":"IFERROR(B119/B117,0)","v":0},null,{"$f":"IFERROR(D119/B117,0)","v":0}]
["Zákonné odvody",null,{"$f":"IFERROR(B121/B119,0)","v":0},null,{"$f":"IFERROR(D121/D119,0)","v":0}]
["Příděl do FKSP (tvoří-li ho povinně žadatel)",null,{"$f":"IFERROR(B122/B119,0)","v":0},null,{"$f":"IFERROR(D122/D119,0)","v":0}]
["Mzdové náklady HPP celkem",{"$f":"(B119+B121+B122)*B116","v":0},null,{"$f":"(D119+D121+D122)*B116","v":0}]
[]
[]
[]
[]
["Funkce",null,null,null,null,10]
["Popis činnosti"]
["Dosažené vzdělání",null,null,"Platová třída (NV 341/2017 Sb.)"]
["Doba odborné praxe",null,null,"Platový stupeň (NV 341/2017 Sb.)"]
["Počet měsíců práce na projektu"]
["Výše úvazku"]
[null,"za projekt celkem",null,"z toho z dotace"]
["Průměrný měsíční plat/mzda \nna daný úvazek (bez odvodů a FKSP)"]
["Průměrný měsíční plat/mzda \npřepočtený na 1 úvazek (bez odvodů a FKSP)",{"$f":"IFERROR(B135/B133,0)","v":0},null,{"$f":"IFERROR(D135/B133,0)","v":0}]
["Zákonné odvody",null,{"$f":"IFERROR(B137/B135,0)","v":0},null,{"$f":"IFERROR(D137/D135,0)","v":0}]
["Příděl do FKSP (tvoří-li ho povinně žadatel)",null,{"$f":"IFERROR(B138/B135,0)","v":0},null,{"$f":"IFERROR(D138/D135,0)","v":0}]
["Mzdové náklady HPP celkem",{"$f":"(B135+B137+B138)*B132","v":0},null,{"$f":"(D135+D137+D138)*B132","v":0}]
[]
["Funkce",null,null,null,null,11]
["Popis činnosti"]
["Dosažené vzdělání",null,null,"Platová třída (NV 341/2017 Sb.)"]
["Doba odborné praxe",null,null,"Platový stupeň (NV 341/2017 Sb.)"]
["Počet měsíců práce na projektu"]
["Výše úvazku"]
[null,"za projekt celkem",null,"z toho z dotace"]
["Průměrný měsíční plat/mzda \nna daný úvazek (bez odvodů a FKSP)"]
["Průměrný měsíční plat/mzda \npřepočtený na 1 úvazek (bez odvodů a FKSP)",{"$f":"IFERROR(B148/B146,0)","v":0},null,{"$f":"IFERROR(D148/B146,0)","v":0}]
["Zákonné odvody",null,{"$f":"IFERROR(B150/B148,0)","v":0},null,{"$f":"IFERROR(D150/D148,0)","v":0}]
["Příděl do FKSP (tvoří-li ho povinně žadatel)",null,{"$f":"IFERROR(B151/B148,0)","v":0},null,{"$f":"IFERROR(D151/D148,0)","v":0}]
["Mzdové náklady HPP celkem",{"$f":"(B148+B150+B151)*B145","v":0},null,{"$f":"(D148+D150+D151)*B145","v":0}]
[]
["Funkce","ředitel",null,null,null,12]
["Popis činnosti"]
["Dosažené vzdělání",null,null,"Platová třída (NV 341/2017 Sb.)"]
["Doba odborné praxe",null,null,"Platový stupeň (NV 341/2017 Sb.)"]
["Počet měsíců práce na projektu"]
["Výše úvazku"]
[null,"za projekt celkem",null,"z toho z dotace"]
["Průměrný měsíční plat/mzda \nna daný úvazek (bez odvodů a FKSP)"]
["Průměrný měsíční plat/mzda \npřepočtený na 1 úvazek (bez odvodů a FKSP)",{"$f":"IFERROR(B161/B159,0)","v":0},null,{"$f":"IFERROR(D161/B159,0)","v":0}]
["Zákonné odvody",null,{"$f":"IFERROR(B163/B161,0)","v":0},null,{"$f":"IFERROR(D163/D161,0)","v":0}]
["Příděl do FKSP (tvoří-li ho povinně žadatel)",null,{"$f":"IFERROR(B164/B161,0)","v":0},null,{"$f":"IFERROR(D164/D161,0)","v":0}]
["Mzdové náklady HPP celkem",{"$f":"(B161+B163+B164)*B158","v":0},null,{"$f":"(D161+D163+D164)*B158","v":0}]
[]
[]
[]
[]
["Funkce",null,null,null,null,13]
["Popis činnosti"]
["Dosažené vzdělání",null,null,"Platová třída (NV 341/2017 Sb.)"]
["Doba odborné praxe",null,null,"Platový stupeň (NV 341/2017 Sb.)"]
["Počet měsíců práce na projektu"]
["Výše úvazku"]
[null,"za projekt celkem",null,"z toho z dotace"]
["Průměrný měsíční plat/mzda \nna daný úvazek (bez odvodů a FKSP)"]
["Průměrný měsíční plat/mzda \npřepočtený na 1 úvazek (bez odvodů a FKSP)",{"$f":"IFERROR(B177/B175,0)","v":0},null,{"$f":"IFERROR(D177/B175,0)","v":0}]
["Zákonné odvody",null,{"$f":"IFERROR(B179/B177,0)","v":0},null,{"$f":"IFERROR(D179/D177,0)","v":0}]
["Příděl do FKSP (tvoří-li ho povinně žadatel)",null,{"$f":"IFERROR(B180/B177,0)","v":0},null,{"$f":"IFERROR(D180/D177,0)","v":0}]
["Mzdové náklady HPP celkem",{"$f":"(B177+B179+B180)*B174","v":0},null,{"$f":"(D177+D179+D180)*B174","v":0}]
[]
["Funkce",null,null,null,null,14]
["Popis činnosti"]
["Dosažené vzdělání",null,null,"Platová třída (NV 341/2017 Sb.)"]
["Doba odborné praxe",null,null,"Platový stupeň (NV 341/2017 Sb.)"]
["Počet měsíců práce na projektu"]
["Výše úvazku"]
[null,"za projekt celkem",null,"z toho z dotace"]
["Průměrný měsíční plat/mzda \nna daný úvazek (bez odvodů a FKSP)"]
["Průměrný měsíční plat/mzda \npřepočtený na 1 úvazek (bez odvodů a FKSP)",{"$f":"IFERROR(B190/B188,0)","v":0},null,{"$f":"IFERROR(D190/B188,0)","v":0}]
["Zákonné odvody",null,{"$f":"IFERROR(B192/B190,0)","v":0},null,{"$f":"IFERROR(D192/D190,0)","v":0}]
["Příděl do FKSP (tvoří-li ho povinně žadatel)",null,{"$f":"IFERROR(B193/B190,0)","v":0},null,{"$f":"IFERROR(D193/D190,0)","v":0}]
["Mzdové náklady HPP celkem",{"$f":"(B190+B192+B193)*B187","v":0},null,{"$f":"(D190+D192+D193)*B187","v":0}]
[]
["Funkce",null,null,null,null,15]
["Popis činnosti"]
["Dosažené vzdělání",null,null,"Platová třída (NV 341/2017 Sb.)"]
["Doba odborné praxe",null,null,"Platový stupeň (NV 341/2017 Sb.)"]
["Počet měsíců práce na projektu"]
["Výše úvazku"]
[null,"za projekt celkem",null,"z toho z dotace"]
["Průměrný měsíční plat/mzda \nna daný úvazek (bez odvodů a FKSP)"]
["Průměrný měsíční plat/mzda \npřepočtený na 1 úvazek (bez odvodů a FKSP)",{"$f":"IFERROR(B203/B201,0)","v":0},null,{"$f":"IFERROR(D203/B201,0)","v":0}]
["Zákonné odvody",null,{"$f":"IFERROR(B205/B203,0)","v":0},null,{"$f":"IFERROR(D205/D203,0)","v":0}]
["Příděl do FKSP (tvoří-li ho povinně žadatel)",null,{"$f":"IFERROR(B206/B203,0)","v":0},null,{"$f":"IFERROR(D206/D203,0)","v":0}]
["Mzdové náklady HPP celkem",{"$f":"(B203+B205+B206)*B200","v":0},null,{"$f":"(D203+D205+D206)*B200","v":0}]
[]
[]
[]
[]
["Funkce",null,null,null,null,16]
["Popis činnosti"]
["Dosažené vzdělání",null,null,"Platová třída (NV 341/2017 Sb.)"]
["Doba odborné praxe",null,null,"Platový stupeň (NV 341/2017 Sb.)"]
["Počet měsíců práce na projektu"]
["Výše úvazku"]
[null,"za projekt celkem",null,"z toho z dotace"]
["Průměrný měsíční plat/mzda \nna daný úvazek (bez odvodů a FKSP)"]
["Průměrný měsíční plat/mzda \npřepočtený na 1 úvazek (bez odvodů a FKSP)",{"$f":"IFERROR(B219/B217,0)","v":0},null,{"$f":"IFERROR(D219/B217,0)","v":0}]
["Zákonné odvody",null,{"$f":"IFERROR(B221/B219,0)","v":0},null,{"$f":"IFERROR(D221/D219,0)","v":0}]
["Příděl do FKSP (tvoří-li ho povinně žadatel)",null,{"$f":"IFERROR(B222/B219,0)","v":0},null,{"$f":"IFERROR(D222/D219,0)","v":0}]
["Mzdové náklady HPP celkem",{"$f":"(B219+B221+B222)*B216","v":0},null,{"$f":"(D219+D221+D222)*B216","v":0}]
[]
["Funkce",null,null,null,null,17]
["Popis činnosti"]
["Dosažené vzdělání",null,null,"Platová třída (NV 341/2017 Sb.)"]
["Doba odborné praxe",null,null,"Platový stupeň (NV 341/2017 Sb.)"]
["Počet měsíců práce na projektu"]
["Výše úvazku"]
[null,"za projekt celkem",null,"z toho z dotace"]
["Průměrný měsíční plat/mzda \nna daný úvazek (bez odvodů a FKSP)"]
["Průměrný měsíční plat/mzda \npřepočtený na 1 úvazek (bez odvodů a FKSP)",{"$f":"IFERROR(B232/B230,0)","v":0},null,{"$f":"IFERROR(D232/B230,0)","v":0}]
["Zákonné odvody",null,{"$f":"IFERROR(B234/B232,0)","v":0},null,{"$f":"IFERROR(D234/D232,0)","v":0}]
["Příděl do FKSP (tvoří-li ho povinně žadatel)",null,{"$f":"IFERROR(B235/B232,0)","v":0},null,{"$f":"IFERROR(D235/D232,0)","v":0}]
["Mzdové náklady HPP celkem",{"$f":"(B232+B234+B235)*B229","v":0},null,{"$f":"(D232+D234+D235)*B229","v":0}]
[]
["Funkce",null,null,null,null,18]
["Popis činnosti"]
["Dosažené vzdělání",null,null,"Platová třída (NV 341/2017 Sb.)"]
["Doba odborné praxe",null,null,"Platový stupeň (NV 341/2017 Sb.)"]
["Počet měsíců práce na projektu"]
["Výše úvazku"]
[null,"za projekt celkem",null,"z toho z dotace"]
["Průměrný měsíční plat/mzda \nna daný úvazek (bez odvodů a FKSP)"]
["Průměrný měsíční plat/mzda \npřepočtený na 1 úvazek (bez odvodů a FKSP)",{"$f":"IFERROR(B245/B243,0)","v":0},null,{"$f":"IFERROR(D245/B243,0)","v":0}]
["Zákonné odvody",null,{"$f":"IFERROR(B247/B245,0)","v":0},null,{"$f":"IFERROR(D247/D245,0)","v":0}]
["Příděl do FKSP (tvoří-li ho povinně žadatel)",null,{"$f":"IFERROR(B248/B245,0)","v":0},null,{"$f":"IFERROR(D248/D245,0)","v":0}]
["Mzdové náklady HPP celkem",{"$f":"(B245+B247+B248)*B242","v":0},null,{"$f":"(D245+D247+D248)*B242","v":0}]
[]
[]
[]
[]
["Funkce",null,null,null,null,19]
["Popis činnosti"]
["Dosažené vzdělání",null,null,"Platová třída (NV 341/2017 Sb.)"]
["Doba odborné praxe",null,null,"Platový stupeň (NV 341/2017 Sb.)"]
["Počet měsíců práce na projektu"]
["Výše úvazku"]
[null,"za projekt celkem",null,"z toho z dotace"]
["Průměrný měsíční plat/mzda \nna daný úvazek (bez odvodů a FKSP)"]
["Průměrný měsíční plat/mzda \npřepočtený na 1 úvazek (bez odvodů a FKSP)",{"$f":"IFERROR(B261/B259,0)","v":0},null,{"$f":"IFERROR(D261/B259,0)","v":0}]
["Zákonné odvody",null,{"$f":"IFERROR(B263/B261,0)","v":0},null,{"$f":"IFERROR(D263/D261,0)","v":0}]
["Příděl do FKSP (tvoří-li ho povinně žadatel)",null,{"$f":"IFERROR(B264/B261,0)","v":0},null,{"$f":"IFERROR(D264/D261,0)","v":0}]
["Mzdové náklady HPP celkem",{"$f":"(B261+B263+B264)*B258","v":0},null,{"$f":"(D261+D263+D264)*B258","v":0}]
[]
["Funkce",null,null,null,null,20]
["Popis činnosti"]
["Dosažené vzdělání",null,null,"Platová třída (NV 341/2017 Sb.)"]
["Doba odborné praxe",null,null,"Platový stupeň (NV 341/2017 Sb.)"]
["Počet měsíců práce na projektu"]
["Výše úvazku"]
[null,"za projekt celkem",null,"z toho z dotace"]
["Průměrný měsíční plat/mzda \nna daný úvazek (bez odvodů a FKSP)"]
["Průměrný měsíční plat/mzda \npřepočtený na 1 úvazek (bez odvodů a FKSP)",{"$f":"IFERROR(B274/B272,0)","v":0},null,{"$f":"IFERROR(D274/B272,0)","v":0}]
["Zákonné odvody",null,{"$f":"IFERROR(B276/B274,0)","v":0},null,{"$f":"IFERROR(D276/D274,0)","v":0}]
["Příděl do FKSP (tvoří-li ho povinně žadatel)",null,{"$f":"IFERROR(B277/B274,0)","v":0},null,{"$f":"IFERROR(D277/D274,0)","v":0}]
["Mzdové náklady HPP celkem",{"$f":"(B274+B276+B277)*B271","v":0},null,{"$f":"(D274+D276+D277)*B271","v":0}]
[]
["Funkce",null,null,null,null,21]
["Popis činnosti"]
["Dosažené vzdělání",null,null,"Platová třída (NV 341/2017 Sb.)"]
["Doba odborné praxe",null,null,"Platový stupeň (NV 341/2017 Sb.)"]
["Počet měsíců práce na projektu"]
["Výše úvazku"]
[null,"za projekt celkem",null,"z toho z dotace"]
["Průměrný měsíční plat/mzda \nna daný úvazek (bez odvodů a FKSP)"]
["Průměrný měsíční plat/mzda \npřepočtený na 1 úvazek (bez odvodů a FKSP)",{"$f":"IFERROR(B287/B285,0)","v":0},null,{"$f":"IFERROR(D287/B285,0)","v":0}]
["Zákonné odvody",null,{"$f":"IFERROR(B289/B287,0)","v":0},null,{"$f":"IFERROR(D289/D287,0)","v":0}]
["Příděl do FKSP (tvoří-li ho povinně žadatel)",null,{"$f":"IFERROR(B290/B287,0)","v":0},null,{"$f":"IFERROR(D290/D287,0)","v":0}]
["Mzdové náklady HPP celkem",{"$f":"(B287+B289+B290)*B284","v":0},null,{"$f":"(D287+D289+D290)*B284","v":0}]

{"sheet":"DPP_DPČ","index":2,"n_rows":292,"n_cols":6,"rows_kept":292,"cut":false,"hidden":false,"merged":[[285,1,285,2],[253,1,253,2],[254,1,254,2],[255,1,255,2],[263,1,263,2],[264,1,264,2],[265,1,265,2],[273,1,273,2],[274,1,274,2],[275,1,275,2],[283,1,283,2],[284,1,284,2],[245,1,245,2],[213,1,213,2],[214,1,214,2],[215,1,215,2],[223,1,223,2],[224,1,224,2],[225,1,225,2],[233,1,233,2],[234,1,234,2],[235,1,235,2],[243,1,243,2],[244,1,244,2],[205,1,205,2],[173,1,173,2],[174,1,174,2],[175,1,175,2],[183,1,183,2],[184,1,184,2],[185,1,185,2],[193,1,193,2],[194,1,194,2],[195,1,195,2],[203,1,203,2],[204,1,204,2],[165,1,165,2],[133,1,133,2],[134,1,134,2],[135,1,135,2],[143,1,143,2],[144,1,144,2],[145,1,145,2],[153,1,153,2],[154,1,154,2],[155,1,155,2],[163,1,163,2],[164,1,164,2],[125,1,125,2],[93,1,93,2],[94,1,94,2],[95,1,95,2],[103,1,103,2],[104,1,104,2],[105,1,105,2],[113,1,113,2],[114,1,114,2],[115,1,115,2],[123,1,123,2],[124,1,124,2],[85,1,85,2],[43,1,43,2],[44,1,44,2],[45,1,45,2],[53,1,53,2],[54,1,54,2],[63,1,63,2],[55,1,55,2],[64,1,64,2],[65,1,65,2],[73,1,73,2],[74,1,74,2],[75,1,75,2],[83,1,83,2],[84,1,84,2],[33,1,33,2],[0,0,1,2],[2,0,2,2],[34,1,34,2],[35,1,35,2],[15,1,15,2],[24,1,24,2],[25,1,25,2],[23,1,23,2],[2,5,2,11],[13,1,13,2],[14,1,14,2],[3,1,3,2],[4,1,4,2],[5,1,5,2]]}
[{"$f":"IF('Základní údaje'!C8<>0,'Základní údaje'!C8,\"\")","v":""}]
[]
["ROZPOČET PROJEKTU - Osobní náklady DPP a DPČ  (v Kč)",null,null,null,null,"Klikněte na příšlušný počet dohod, pro který je nutné vyplnit formulář, pokud nestačí přednastavený počet 1 - 4:"]
["Funkce",null,null,1]
["Popis činnosti",null,null,null,null,"Pokud potřebujete více jak 29 DPP/DPČ, je třeba dokopírovat další tabulky ručně."]
["Plánovaný počet hodin prací na projektu"]
[null,"za projekt celkem","z toho z dotace"]
["Platba za hodinu",null,{"$f":"IFERROR(C9/B6,\" \")","v":" "}]
["Celkové náklady bez odvodů",{"$f":"B6*B8","v":0}]
["Zákonné odvody"]
["%",{"$f":"IFERROR(B10/B9*100,\" \")","v":" "},{"$f":"IFERROR(C10/C9*100,\" \")","v":" "}]
["Náklady celkem",{"$f":"B9+B10","v":0},{"$f":"C9+C10","v":0}]
[]
["Funkce",null,null,2]
["Popis činnosti"]
["Plánovaný počet hodin prací na projektu"]
[null,"za projekt celkem","z toho z dotace"]
["Platba za hodinu",null,{"$f":"IFERROR(C19/B16,\" \")","v":" "}]
["Celkové náklady bez odvodů",{"$f":"B16*B18","v":0}]
["Zákonné odvody"]
["%",{"$f":"IFERROR(B20/B19*100,\" \")","v":" "},{"$f":"IFERROR(C20/C19*100,\" \")","v":" "}]
["Náklady celkem",{"$f":"B19+B20","v":0},{"$f":"C19+C20","v":0}]
[]
["Funkce",null,null,3]
["Popis činnosti"]
["Plánovaný počet hodin prací na projektu"]
[null,"za projekt celkem","z toho z dotace"]
["Platba za hodinu",null,{"$f":"IFERROR(C29/B26,\" \")","v":" "}]
["Celkové náklady bez odvodů",{"$f":"B26*B28","v":0}]
["Zákonné odvody"]
["%",{"$f":"IFERROR(B30/B29*100,\" \")","v":" "},{"$f":"IFERROR(C30/C29*100,\" \")","v":" "}]
["Náklady celkem",{"$f":"B29+B30","v":0},{"$f":"C29+C30","v":0}]
[]
["Funkce",null,null,4]
["Popis činnosti"]
["Plánovaný počet hodin prací na projektu"]
[null,"za projekt celkem","z toho z dotace"]
["Platba za hodinu",null,{"$f":"IFERROR(C39/B36,\" \")","v":" "}]
["Celkové náklady bez odvodů",{"$f":"B36*B38","v":0}]
["Zákonné odvody"]
["%",{"$f":"IFERROR(B40/B39*100,\" \")","v":" "},{"$f":"IFERROR(C40/C39*100,\" \")","v":" "}]
["Náklady celkem",{"$f":"B39+B40","v":0},{"$f":"C39+C40","v":0}]
[]
["Funkce",null,null,5]
["Popis činnosti"]
["Plánovaný počet hodin prací na projektu"]
[null,"za projekt celkem","z toho z dotace"]
["Platba za hodinu",null,{"$f":"IFERROR(C49/B46,\" \")","v":" "}]
["Celkové náklady bez odvodů",{"$f":"B46*B48","v":0}]
["Zákonné odvody"]
["%",{"$f":"IFERROR(B50/B49*100,\" \")","v":" "},{"$f":"IFERROR(C50/C49*100,\" \")","v":" "}]
["Náklady celkem",{"$f":"B49+B50","v":0},{"$f":"C49+C50","v":0}]
[]
["Funkce",null,null,6]
["Popis činnosti"]
["Plánovaný počet hodin prací na projektu"]
[null,"za projekt celkem","z toho z dotace"]
["Platba za hodinu",null,{"$f":"IFERROR(C59/B56,\" \")","v":" "}]
["Celkové náklady bez odvodů",{"$f":"B56*B58","v":0}]
["Zákonné odvody"]
["%",{"$f":"IFERROR(B60/B59*100,\" \")","v":" "},{"$f":"IFERROR(C60/C59*100,\" \")","v":" "}]
["Náklady celkem",{"$f":"B59+B60","v":0},{"$f":"C59+C60","v":0}]
[]
["Funkce",null,null,7]
["Popis činnosti"]
["Plánovaný počet hodin prací na projektu"]
[null,"za projekt celkem","z toho z dotace"]
["Platba za hodinu",null,{"$f":"IFERROR(C69/B66,\" \")","v":" "}]
["Celkové náklady bez odvodů",{"$f":"B66*B68","v":0}]
["Zákonné odvody"]
["%",{"$f":"IFERROR(B70/B69*100,\" \")","v":" "},{"$f":"IFERROR(C70/C69*100,\" \")","v":" "}]
["Náklady celkem",{"$f":"B69+B70","v":0},{"$f":"C69+C70","v":0}]
[]
["Funkce",null,null,8]
["Popis činnosti"]
["Plánovaný počet hodin prací na projektu"]
[null,"za projekt celkem","z toho z dotace"]
["Platba za hodinu",null,{"$f":"IFERROR(C79/B76,\" \")","v":" "}]
["Celkové náklady bez odvodů",{"$f":"B76*B78","v":0}]
["Zákonné odvody"]
["%",{"$f":"IFERROR(B80/B79*100,\" \")","v":" "},{"$f":"IFERROR(C80/C79*100,\" \")","v":" "}]
["Náklady celkem",{"$f":"B79+B80","v":0},{"$f":"C79+C80","v":0}]
[]
["Funkce",null,null,9]
["Popis činnosti"]
["Plánovaný počet hodin prací na projektu"]
[null,"za projekt celkem","z toho z dotace"]
["Platba za hodinu",null,{"$f":"IFERROR(C89/B86,\" \")","v":" "}]
["Celkové náklady bez odvodů",{"$f":"B86*B88","v":0}]
["Zákonné odvody"]
["%",{"$f":"IFERROR(B90/B89*100,\" \")","v":" "},{"$f":"IFERROR(C90/C89*100,\" \")","v":" "}]
["Náklady celkem",{"$f":"B89+B90","v":0},{"$f":"C89+C90","v":0}]
[]
["Funkce",null,null,10]
["Popis činnosti"]
["Plánovaný počet hodin prací na projektu"]
[null,"za projekt celkem","z toho z dotace"]
["Platba za hodinu",null,{"$f":"IFERROR(C99/B96,\" \")","v":" "}]
["Celkové náklady bez odvodů",{"$f":"B96*B98","v":0}]
["Zákonné odvody"]
["%",{"$f":"IFERROR(B100/B99*100,\" \")","v":" "},{"$f":"IFERROR(C100/C99*100,\" \")","v":" "}]
["Náklady celkem",{"$f":"B99+B100","v":0},{"$f":"C99+C100","v":0}]
[]
["Funkce",null,null,11]
["Popis činnosti"]
["Plánovaný počet hodin prací na projektu"]
[null,"za projekt celkem","z toho z dotace"]
["Platba za hodinu",null,{"$f":"IFERROR(C109/B106,\" \")","v":" "}]
["Celkové náklady bez odvodů",{"$f":"B106*B108","v":0}]
["Zákonné odvody"]
["%",{"$f":"IFERROR(B110/B109*100,\" \")","v":" "},{"$f":"IFERROR(C110/C109*100,\" \")","v":" "}]
["Náklady celkem",{"$f":"B109+B110","v":0},{"$f":"C109+C110","v":0}]
[]
["Funkce",null,null,12]
["Popis činnosti"]
["Plánovaný počet hodin prací na projektu"]
[null,"za projekt celkem","z toho z dotace"]
["Platba za hodinu",null,{"$f":"IFERROR(C119/B116,\" \")","v":" "}]
["Celkové náklady bez odvodů",{"$f":"B116*B118","v":0}]
["Zákonné odvody"]
["%",{"$f":"IFERROR(B120/B119*100,\" \")","v":" "},{"$f":"IFERROR(C120/C119*100,\" \")","v":" "}]
["Náklady celkem",{"$f":"B119+B120","v":0},{"$f":"C119+C120","v":0}]
[]
["Funkce",null,null,13]
["Popis činnosti"]
["Plánovaný počet hodin prací na projektu"]
[null,"za projekt celkem","z toho z dotace"]
["Platba za hodinu",null,{"$f":"IFERROR(C129/B126,\" \")","v":" "}]
["Celkové náklady bez odvodů",{"$f":"B126*B128","v":0}]
["Zákonné odvody"]
["%",{"$f":"IFERROR(B130/B129*100,\" \")","v":" "},{"$f":"IFERROR(C130/C129*100,\" \")","v":" "}]
["Náklady celkem",{"$f":"B129+B130","v":0},{"$f":"C129+C130","v":0}]
[]
["Funkce",null,null,14]
["Popis činnosti"]
["Plánovaný počet hodin prací na projektu"]
[null,"za projekt celkem","z toho z dotace"]
["Platba za hodinu",null,{"$f":"IFERROR(C139/B136,\" \")","v":" "}]
["Celkové náklady bez odvodů",{"$f":"B136*B138","v":0}]
["Zákonné odvody"]
["%",{"$f":"IFERROR(B140/B139*100,\" \")","v":" "},{"$f":"IFERROR(C140/C139*100,\" \")","v":" "}]
["Náklady celkem",{"$f":"B139+B140","v":0},{"$f":"C139+C140","v":0}]
[]
["Funkce",null,null,15]
["Popis činnosti"]
["Plánovaný počet hodin prací na projektu"]
[null,"za projekt celkem","z toho z dotace"]
["Platba za hodinu",null,{"$f":"IFERROR(C149/B146,\" \")","v":" "}]
["Celkové náklady bez odvodů",{"$f":"B146*B148","v":0}]
["Zákonné odvody"]
["%",{"$f":"IFERROR(B150/B149*100,\" \")","v":" "},{"$f":"IFERROR(C150/C149*100,\" \")","v":" "}]
["Náklady celkem",{"$f":"B149+B150","v":0},{"$f":"C149+C150","v":0}]
[]
["Funkce",null,null,16]
["Popis činnosti"]
["Plánovaný počet hodin prací na projektu"]
[null,"za projekt celkem","z toho z dotace"]
["Platba za hodinu",null,{"$f":"IFERROR(C159/B156,\" \")","v":" "}]
["Celkové náklady bez odvodů",{"$f":"B156*B158","v":0}]
["Zákonné odvody"]
["%",{"$f":"IFERROR(B160/B159*100,\" \")","v":" "},{"$f":"IFERROR(C160/C159*100,\" \")","v":" "}]
["Náklady celkem",{"$f":"B159+B160","v":0},{"$f":"C159+C160","v":0}]
[]
["Funkce",null,null,17]
["Popis činnosti"]
["Plánovaný počet hodin prací na projektu"]
[null,"za projekt celkem","z toho z dotace"]
["Platba za hodinu",null,{"$f":"IFERROR(C169/B166,\" \")","v":" "}]
["Celkové náklady bez odvodů",{"$f":"B166*B168","v":0}]
["Zákonné odvody"]
["%",{"$f":"IFERROR(B170/B169*100,\" \")","v":" "},{"$f":"IFERROR(C170/C169*100,\" \")","v":" "}]
["Náklady celkem",{"$f":"B169+B170","v":0},{"$f":"C169+C170","v":0}]
[]
["Funkce",null,null,18]
["Popis činnosti"]
["Plánovaný počet hodin prací na projektu"]
[null,"za projekt celkem","z toho z dotace"]
["Platba za hodinu",null,{"$f":"IFERROR(C179/B176,\" \")","v":" "}]
["Celkové náklady bez odvodů",{"$f":"B176*B178","v":0}]
["Zákonné odvody"]
["%",{"$f":"IFERROR(B180/B179*100,\" \")","v":" "},{"$f":"IFERROR(C180/C179*100,\" \")","v":" "}]
["Náklady celkem",{"$f":"B179+B180","v":0},{"$f":"C179+C180","v":0}]
[]
["Funkce",null,null,19]
["Popis činnosti"]
["Plánovaný počet hodin prací na projektu"]
[null,"za projekt celkem","z toho z dotace"]
["Platba za hodinu",null,{"$f":"IFERROR(C189/B186,\" \")","v":" "}]
["Celkové náklady bez odvodů",{"$f":"B186*B188","v":0}]
["Zákonné odvody"]
["%",{"$f":"IFERROR(B190/B189*100,\" \")","v":" "},{"$f":"IFERROR(C190/C189*100,\" \")","v":" "}]
["Náklady celkem",{"$f":"B189+B190","v":0},{"$f":"C189+C190","v":0}]
[]
["Funkce",null,null,20]
["Popis činnosti"]
["Plánovaný počet hodin prací na projektu"]
[null,"za projekt celkem","z toho z dotace"]
["Platba za hodinu",null,{"$f":"IFERROR(C199/B196,\" \")","v":" "}]
["Celkové náklady bez odvodů",{"$f":"B196*B198","v":0}]
["Zákonné odvody"]
["%",{"$f":"IFERROR(B200/B199*100,\" \")","v":" "},{"$f":"IFERROR(C200/C199*100,\" \")","v":" "}]
["Náklady celkem",{"$f":"B199+B200","v":0},{"$f":"C199+C200","v":0}]
[]
["Funkce",null,null,21]
["Popis činnosti"]
["Plánovaný počet hodin prací na projektu"]
[null,"za projekt celkem","z toho z dotace"]
["Platba za hodinu",null,{"$f":"IFERROR(C209/B206,\" \")","v":" "}]
["Celkové náklady bez odvodů",{"$f":"B206*B208","v":0}]
["Zákonné odvody"]
["%",{"$f":"IFERROR(B210/B209*100,\" \")","v":" "},{"$f":"IFERROR(C210/C209*100,\" \")","v":" "}]
["Náklady celkem",{"$f":"B209+B210","v":0},{"$f":"C209+C210","v":0}]
[]
["Funkce",null,null,22]
["Popis činnosti"]
["Plánovaný počet hodin prací na projektu"]
[null,"za projekt celkem","z toho z dotace"]
["Platba za hodinu",null,{"$f":"IFERROR(C219/B216,\" \")","v":" "}]
["Celkové náklady bez odvodů",{"$f":"B216*B218","v":0}]
["Zákonné odvody"]
["%",{"$f":"IFERROR(B220/B219*100,\" \")","v":" "},{"$f":"IFERROR(C220/C219*100,\" \")","v":" "}]
["Náklady celkem",{"$f":"B219+B220","v":0},{"$f":"C219+C220","v":0}]
[]
["Funkce",null,null,23]
["Popis činnosti"]
["Plánovaný počet hodin prací na projektu"]
[null,"za projekt celkem","z toho z dotace"]
["Platba za hodinu",null,{"$f":"IFERROR(C229/B226,\" \")","v":" "}]
["Celkové náklady bez odvodů",{"$f":"B226*B228","v":0}]
["Zákonné odvody"]
["%",{"$f":"IFERROR(B230/B229*100,\" \")","v":" "},{"$f":"IFERROR(C230/C229*100,\" \")","v":" "}]
["Náklady celkem",{"$f":"B229+B230","v":0},{"$f":"C229+C230","v":0}]
[]
["Funkce",null,null,24]
["Popis činnosti"]
["Plánovaný počet hodin prací na projektu"]
[null,"za projekt celkem","z toho z dotace"]
["Platba za hodinu",null,{"$f":"IFERROR(C239/B236,\" \")","v":" "}]
["Celkové náklady bez odvodů",{"$f":"B236*B238","v":0}]
["Zákonné odvody"]
["%",{"$f":"IFERROR(B240/B239*100,\" \")","v":" "},{"$f":"IFERROR(C240/C239*100,\" \")","v":" "}]
["Náklady celkem",{"$f":"B239+B240","v":0},{"$f":"C239+C240","v":0}]
[]
["Funkce",null,null,25]
["Popis činnosti"]
["Plánovaný počet hodin prací na projektu"]
[null,"za projekt celkem","z toho z dotace"]
["Platba za hodinu",null,{"$f":"IFERROR(C249/B246,\" \")","v":" "}]
["Celkové náklady bez odvodů",{"$f":"B246*B248","v":0}]
["Zákonné odvody"]
["%",{"$f":"IFERROR(B250/B249*100,\" \")","v":" "},{"$f":"IFERROR(C250/C249*100,\" \")","v":" "}]
["Náklady celkem",{"$f":"B249+B250","v":0},{"$f":"C249+C250","v":0}]
[]
["Funkce",null,null,26]
["Popis činnosti"]
["Plánovaný počet hodin prací na projektu"]
[null,"za projekt celkem","z toho z dotace"]
["Platba za hodinu",null,{"$f":"IFERROR(C259/B256,\" \")","v":" "}]
["Celkové náklady bez odvodů",{"$f":"B256*B258","v":0}]
["Zákonné odvody"]
["%",{"$f":"IFERROR(B260/B259*100,\" \")","v":" "},{"$f":"IFERROR(C260/C259*100,\" \")","v":" "}]
["Náklady celkem",{"$f":"B259+B260","v":0},{"$f":"C259+C260","v":0}]
[]
["Funkce",null,null,27]
["Popis činnosti"]
["Plánovaný počet hodin prací na projektu"]
[null,"za projekt celkem","z toho z dotace"]
["Platba za hodinu",null,{"$f":"IFERROR(C269/B266,\" \")","v":" "}]
["Celkové náklady bez odvodů",{"$f":"B266*B268","v":0}]
["Zákonné odvody"]
["%",{"$f":"IFERROR(B270/B269*100,\" \")","v":" "},{"$f":"IFERROR(C270/C269*100,\" \")","v":" "}]
["Náklady celkem",{"$f":"B269+B270","v":0},{"$f":"C269+C270","v":0}]
[]
["Funkce",null,null,28]
["Popis činnosti"]
["Plánovaný počet hodin prací na projektu"]
[null,"za projekt celkem","z toho z dotace"]
["Platba za hodinu",null,{"$f":"IFERROR(C279/B276,\" \")","v":" "}]
["Celkové náklady bez odvodů",{"$f":"B276*B278","v":0}]
["Zákonné odvody"]
["%",{"$f":"IFERROR(B280/B279*100,\" \")","v":" "},{"$f":"IFERROR(C280/C279*100,\" \")","v":" "}]
["Náklady celkem",{"$f":"B279+B280","v":0},{"$f":"C279+C280","v":0}]
[]
["Funkce",null,null,29]
["Popis činnosti"]
["Plánovaný počet hodin prací na projektu"]
[null,"za projekt celkem","z toho z dotace"]
["Platba za hodinu",null,{"$f":"IFERROR(C289/B286,\" \")","v":" "}]
["Celkové náklady bez odvodů",{"$f":"B286*B288","v":0}]
["Zákonné odvody"]
["%",{"$f":"IFERROR(B290/B289*100,\" \")","v":" "},{"$f":"IFERROR(C290/C289*100,\" \")","v":" "}]
["Náklady celkem",{"$f":"B289+B290","v":0},{"$f":"C289+C290","v":0}]

{"sheet":"ONIV rozpočet","index":3,"n_rows":38,"n_cols":3,"rows_kept":38,"cut":false,"hidden":false,"merged":[[0,0,1,2],[2,0,2,2]]}
[{"$f":"IF('Základní údaje'!C8<>0,'Základní údaje'!C8,\"\")","v":""}]
[]
["ROZPOČET PROJEKTU - ostatní neinvestiční náklady -  finanční vyčíslení v Kč"]
[]
[null,"Náklady na projekt","Z toho z dotace"]
["Potraviny"]
["DDHM s pořizovací cenou do 40.000 Kč"]
["Pohonné  hmoty"]
["Kancelářské potřeby"]
["Výukový materiál"]
["Ostatní materiál"]
["Materiálové náklady celkem",{"$f":"SUM(B6:B11)","v":0},{"$f":"SUM(C6:C11)","v":0}]
[]
["Nájemné (např. budova sídla)"]
["Pronájem (např. prostor pro realizaci akce)"]
["Energie (elektřina, vodné, stočné, plyn..)"]
["Internet"]
["Telekomunikační poplatky"]
["Poštovné"]
["Cestovné realizátorů - max. do ceny jízdenky veřejné dopravy"]
["Cestovné cílové skupiny - max. do ceny jízdenky veřejné dopravy"]
["Doprava (např. pronájem autobusu)"]
["Ubytování"]
["Školení/vzdělávání vlastních zaměstnanců "]
["Stravování"]
["DDNM s pořizovací cenou do 60.000 Kč"]
["Software - licence "]
["Honoráře - Ekonomické služby"]
["Honoráře - Právní služby"]
["Honoráře - Ostatní služby"]
["Propagace projektu"]
["Tisk nesouvisející s propagací"]
["Ostatní nemateriálové náklady"]
["Nemateriálové náklady celkem",{"$f":"SUM(B14:B33)","v":0},{"$f":"SUM(C14:C33)","v":0}]
[]
["Ostatní neinvestiční náklady celkem",{"$f":"B34+B12","v":0},{"$f":"C34+C12","v":0}]
["DDHM = Drobný dlouhodobý hmotný majetek"]
["DDNM = Drobný dlouhodobý nehmotný majetek"]

{"sheet":"ONIV komentář","index":4,"n_rows":56,"n_cols":3,"rows_kept":56,"cut":false,"hidden":false,"merged":[[0,0,1,0],[2,2,2,10],[3,2,4,10]]}
[{"$f":"IF('Základní údaje'!C8<>0,'Základní údaje'!C8,\"\")","v":""}]
[]
["ROZPOČET PROJEKTU - ostatní neinvestiční náklady  -  komentář",null,"výšku řádku přizpůsobte rozsahu komentáře"]
[null,null,"můžete tak učinit ručně,  popř. za použití tlačítka po zapsání komentářů "]
["Potraviny"]
[]
["Drobný dlouhodobý hmotný majetek s pořizovací cenou do 40.000 Kč"]
[]
["Pohonné  hmoty"]
[]
["Kancelářské potřeby"]
[]
["Výukový materiál"]
[]
["Ostatní materiál"]
[]
[]
["Nájemné (např. budova sídla)"]
[]
["Pronájem (např. prostor pro realizaci akce)"]
[]
["Energie (elektřina, vodné, stočné, plyn..)"]
[]
["Internet"]
[]
["Telekomunikační poplatky"]
[]
["Poštovné"]
[]
["Cestovné realizátorů - max. do ceny jízdenky veřejné dopravy"]
[]
["Cestovné cílové skupiny - max. do ceny jízdenky veřejné dopravy"]
[]
["Doprava (např. pronájem autobusu)"]
[]
["Ubytování"]
[]
["Školení/vzdělávání vlastních zaměstnanců "]
[]
["Stravování"]
[]
["Drobný dlouhodobý nehmotný majetek s pořizovací cenou do 60.000 Kč"]
[]
["Software - licence "]
[]
["Honoráře - Ekonomické služby"]
[]
["Honoráře - Právní služby"]
[]
["Honoráře - Ostatní služby"]
[]
["Propagace projektu"]
[]
["Tisk nesouvisející s propagací"]
[]
["Ostatní nemateriálové náklady"]

{"sheet":"zdroj dat","index":5,"n_rows":16,"n_cols":2,"rows_kept":16,"cut":false,"hidden":true,"merged":[]}
[null,"vyberte název kraje"]
[null,"není relevantní"]
[null,"Hlavní město Praha"]
[null,"Středočeský kraj"]
[null,"Jihočeský kraj"]
[null,"Plzeňský kraj"]
[null,"Karlovarský kraj"]
[null,"Ústecký kraj"]
[null,"Liberecký kraj"]
[null,"Královéhradecký kraj\t"]
[null,"Pardubický kraj"]
[null,"Kraj Vysočina"]
[null,"Jihomoravský kraj"]
[null,"Olomoucký kraj"]
[null,"Zlínský kraj"]
[null,"Moravskoslezský kraj"]

{"sheet":"Zdroje","index":6,"n_rows":36,"n_cols":3,"rows_kept":36,"cut":false,"hidden":false,"merged":[[35,0,35,1],[0,0,1,2],[2,0,2,2],[4,0,19,0],[20,0,32,0],[33,0,33,1],[34,0,34,1]]}
[{"$f":"IF('Základní údaje'!C8<>0,'Základní údaje'!C8,\"\")","v":""}]
[]
["FINANČNÍ ZDROJE PROJEKTU"]
[]
["Zdroje ze státního rozpočtu ","Název zdroje","Částka v Kč / komentář"]
[null,"MŠMT - dotace v rámci této Výzvy"]
[null,"MŠMT - jiné příjmy"]
[null,"                konkretizujte"]
[null,"MŠMT celkem",{"$f":"C6+C7","v":0}]
[null,"Úřad vlády "]
[null,"Ministerstvo práce a sociální věcí "]
[null,"Ministerstvo kultury"]
[null,"Miniterstvo vnitra"]
[null,"Ministerstvo zdravotnictví"]
[null,"Ministerstvo pro místní rozvoj"]
[null,"Ostatní resorty státní správy"]
[null,"Úřady práce"]
[null,"Fondy zdravotních pojišťoven"]
[null,"Zdroje ze státního rozpočt, bez MŠMT",{"$f":"SUM(C10:C18)","v":0}]
[null,"Zdroje ze státního rozpočtu, vč. MŠMT",{"$f":"C9+C19","v":0}]
["Ostatní zdroje","Kraj"]
[null,"Obec"]
[null,"Nadace zahraniční i tuzemské"]
[null,"Sbírky"]
[null,"Sponzorské dary"]
[null,"Příjmy od klientů"]
[null,"Příjmy z projektu (vstupné, kurzovné…)"]
[null,"                konkretizujte"]
[null,"Vlastní příjmy"]
[null,"                konkretizujte"]
[null,"Ostatní"]
[null,"                konkretizujte"]
[null,"Ostatní zdroje celkem",{"$f":"SUM(C21:C27)+C29+C31","v":0}]
["Zdroje ze státního rozpočtu a ostatní zdroje celkem",null,{"$f":"C20+C33","v":0}]
["Podíl finančních prostředků ze státního rozpočtu na projektu",null,{"$f":"IFERROR(C20/C34,\"\")","v":""}]
["Podíl dotace MSMT na celkových  nákladech na projekt",null,{"$f":"IFERROR(C6/C34,\"\")","v":""}]

{"sheet":"Informace k vyplnění","index":7,"n_rows":2,"n_cols":1,"rows_kept":2,"cut":false,"hidden":false,"merged":[[1,0,3,9]]}
[]
["Komentář k ostatním neinvestičním nákladům (ONIV) musí obsahovat upřesnění položky požadované z dotace, zdůvodnění potřebnosti položky v projektu (vazbu k aktivitě projektu), počet kusů, cenu za jednotku, celkovou cenu a informaci, jaký počet osob položku využije."]